[Event "Titled Tuesday Blitz June 28 Early 2022"]
[White "Xiong, Jeffery"]
[Black "Nakamura, Hikaru"]
[WhiteFideId "2047640"]
[BlackFideId "2016192"]
[WhiteElo "2714"]
[BlackElo "2850"]
[Result "0-1"]
[Round "09"]
[TimeControl "180+1"]
[Date "2022.06.28"]
[WhiteClock "0:00:01"]
[BlackClock "0:00:54"]

1. e4 {[%clk 0:03:00]}  e5 {[%clk 0:02:59]} 2. Nf3 {[%clk 0:03:01]}  Nc6 {[%clk 0:02:59]} 3. Nc3 {[%clk 0:02:54]}  f5 {[%clk 0:02:50]} 4. exf5 {[%clk 0:02:52]}  Nf6 {[%clk 0:02:47]} 5. d4 {[%clk 0:02:33]}  e4 {[%clk 0:02:45]} 6. Ne5 {[%clk 0:02:18]}  Bb4 {[%clk 0:02:28]} 7. Bg5 {[%clk 0:02:10]}  d6 {[%clk 0:02:22]} 8. Ng4 {[%clk 0:01:58]}  Bxf5 {[%clk 0:02:15]} 9. Bxf6 {[%clk 0:01:47]}  gxf6 {[%clk 0:02:16]} 10. Ne3 {[%clk 0:01:48]}  Bg6 {[%clk 0:02:16]} 11. a3 {[%clk 0:01:27]}  Bxc3+ {[%clk 0:02:09]} 12. bxc3 {[%clk 0:01:28]}  Ne7 {[%clk 0:02:06]} 13. h4 {[%clk 0:01:28]}  f5 {[%clk 0:02:00]} 14. g3 {[%clk 0:01:28]}  Qd7 {[%clk 0:01:56]} 15. Qb1 {[%clk 0:01:23]}  O-O-O {[%clk 0:01:55]} 16. Qb5 {[%clk 0:01:23]}  c6 {[%clk 0:01:55]} 17. Qa5 {[%clk 0:01:22]}  Kb8 {[%clk 0:01:47]} 18. Rb1 {[%clk 0:01:22]}  Qc7 {[%clk 0:01:47]} 19. Qxc7+ {[%clk 0:01:17]}  Kxc7 {[%clk 0:01:47]} 20. c4 {[%clk 0:01:18]}  Rhf8 {[%clk 0:01:40]} 21. Ng2 {[%clk 0:01:18]}  d5 {[%clk 0:01:38]} 22. c5 {[%clk 0:00:52]}  Bf7 {[%clk 0:01:37]} 23. h5 {[%clk 0:00:51]}  b6 {[%clk 0:01:37]} 24. cxb6+ {[%clk 0:00:51]}  axb6 {[%clk 0:01:36]} 25. Nf4 {[%clk 0:00:50]}  Ra8 {[%clk 0:01:34]} 26. Rb3 {[%clk 0:00:22]}  c5 {[%clk 0:01:34]} 27. dxc5 {[%clk 0:00:17]}  bxc5 {[%clk 0:01:35]} 28. Be2 {[%clk 0:00:14]}  d4 {[%clk 0:01:25]} 29. Rb5 {[%clk 0:00:14]}  Kc6 {[%clk 0:01:26]} 30. Rb1 {[%clk 0:00:12]}  c4 {[%clk 0:01:25]} 31. h6 {[%clk 0:00:08]}  Rxa3 {[%clk 0:01:19]} 32. Bh5 {[%clk 0:00:08]}  d3 {[%clk 0:01:13]} 33. cxd3 {[%clk 0:00:07]}  Bxh5 {[%clk 0:01:09]} 34. Rxh5 {[%clk 0:00:08]}  exd3 {[%clk 0:01:09]} 35. Kd2 {[%clk 0:00:06]}  Ra2+ {[%clk 0:01:05]} 36. Kc3 {[%clk 0:00:06]}  Rc2+ {[%clk 0:01:05]} 37. Kd4 {[%clk 0:00:05]}  Rd8+ {[%clk 0:01:04]} 38. Ke5 {[%clk 0:00:05]}  d2 {[%clk 0:00:59]} 39. Rhh1 {[%clk 0:00:05]}  c3 {[%clk 0:01:00]} 40. Ne6 {[%clk 0:00:03]}  Rd5+ {[%clk 0:00:59]} 41. Kf6 {[%clk 0:00:03]}  Ng6 {[%clk 0:00:58]} 42. Ng5 {[%clk 0:00:02]}  Ra2 {[%clk 0:00:54]} 43. Nxh7 {[%clk 0:00:02]}  Rd6+ {[%clk 0:00:55]} 44. Kg7 {[%clk 0:00:01]}  c2 {[%clk 0:00:56]} 45. Nf6 {[%clk 0:00:01]}  Ne5 {[%clk 0:00:53]} 46. h7 {[%clk 0:00:01]}  Ra7+ {[%clk 0:00:54]} 47. Kg8 {[%clk 0:00:01]}  Rd8+ {[%clk 0:00:54]} 0-1


[Site "https://www.chess.com"]

[Event "Titled Tuesday Blitz June 28 Early 2022"]
[White "Yaksin, Oleg"]
[Black "Ladan, Nicholas"]
[WhiteFideId "24105880"]
[BlackFideId "30918855"]
[WhiteElo "2256"]
[BlackElo "2167"]
[Result "1-0"]
[Round "09"]
[TimeControl "180+1"]
[Date "2022.06.28"]
[WhiteClock "0:00:04"]
[BlackClock "0:00:02"]

1. d4 {[%clk 0:02:56]}  d5 {[%clk 0:02:56]} 2. c4 {[%clk 0:02:57]}  e6 {[%clk 0:02:57]} 3. Nf3 {[%clk 0:02:57]}  Nf6 {[%clk 0:02:57]} 4. g3 {[%clk 0:02:57]}  dxc4 {[%clk 0:02:54]} 5. Bg2 {[%clk 0:02:58]}  Bd7 {[%clk 0:02:54]} 6. Ne5 {[%clk 0:02:53]}  Bc6 {[%clk 0:02:54]} 7. Nxc6 {[%clk 0:02:50]}  Nxc6 {[%clk 0:02:55]} 8. e3 {[%clk 0:02:38]}  Bd6 {[%clk 0:02:53]} 9. Qa4 {[%clk 0:02:34]}  O-O {[%clk 0:02:50]} 10. Qxc4 {[%clk 0:02:33]}  e5 {[%clk 0:02:50]} 11. O-O {[%clk 0:02:29]}  Qe7 {[%clk 0:02:35]} 12. Bxc6 {[%clk 0:02:24]}  bxc6 {[%clk 0:02:34]} 13. dxe5 {[%clk 0:02:19]}  Qxe5 {[%clk 0:02:27]} 14. Qxc6 {[%clk 0:02:17]}  Rab8 {[%clk 0:02:23]} 15. Nc3 {[%clk 0:02:16]}  Rb6 {[%clk 0:02:18]} 16. Qf3 {[%clk 0:02:11]}  Rfb8 {[%clk 0:02:16]} 17. e4 {[%clk 0:02:08]}  Qa5 {[%clk 0:01:53]} 18. Rb1 {[%clk 0:01:44]}  Be5 {[%clk 0:01:50]} 19. Bf4 {[%clk 0:01:16]}  Bxc3 {[%clk 0:01:38]} 20. Bxc7 {[%clk 0:01:16]}  Be5 {[%clk 0:01:28]} 21. Bxb8 {[%clk 0:01:10]}  Rxb8 {[%clk 0:01:26]} 22. a3 {[%clk 0:00:47]}  h5 {[%clk 0:01:17]} 23. b4 {[%clk 0:00:44]}  Qb6 {[%clk 0:01:11]} 24. Rfd1 {[%clk 0:00:43]}  Rc8 {[%clk 0:00:55]} 25. Rbc1 {[%clk 0:00:41]}  Re8 {[%clk 0:00:33]} 26. Rc5 {[%clk 0:00:24]}  Bd6 {[%clk 0:00:20]} 27. Rc4 {[%clk 0:00:24]}  Ng4 {[%clk 0:00:17]} 28. Rcd4 {[%clk 0:00:21]}  Be5 {[%clk 0:00:17]} 29. Rd5 {[%clk 0:00:18]}  Bf6 {[%clk 0:00:13]} 30. Rxh5 {[%clk 0:00:15]}  Ne5 {[%clk 0:00:03]} 31. Qe2 {[%clk 0:00:14]}  Ng6 {[%clk 0:00:03]} 32. Rhd5 {[%clk 0:00:12]}  Ne5 {[%clk 0:00:03]} 33. Kg2 {[%clk 0:00:12]}  g6 {[%clk 0:00:03]} 34. h4 {[%clk 0:00:12]}  Kg7 {[%clk 0:00:03]} 35. h5 {[%clk 0:00:12]}  Re6 {[%clk 0:00:03]} 36. hxg6 {[%clk 0:00:13]}  Nxg6 {[%clk 0:00:03]} 37. Qg4 {[%clk 0:00:12]}  Qc7 {[%clk 0:00:02]} 38. Rd7 {[%clk 0:00:11]}  Qc4 {[%clk 0:00:02]} 39. Qf5 {[%clk 0:00:04]}  Be5 {[%clk 0:00:02]} 40. Qxf7+ {[%clk 0:00:03]}  Kh6 {[%clk 0:00:02]} 41. Rh1+ {[%clk 0:00:04]}  Kg5 {[%clk 0:00:02]} 42. Qf5# {[%clk 0:00:04]} 1-0


[Site "https://www.chess.com"]

[Event "Titled Tuesday Blitz June 28 Early 2022"]
[White "Yang, Kaiqi"]
[Black "Dobre, Claudiu-Cristian"]
[WhiteFideId "8604398"]
[BlackFideId "1211854"]
[WhiteElo "2373"]
[BlackElo "2207"]
[Result "1/2-1/2"]
[Round "09"]
[TimeControl "180+1"]
[Date "2022.06.28"]
[WhiteClock "0:00:17"]
[BlackClock "0:00:13"]

1. d4 {[%clk 0:03:00]}  d5 {[%clk 0:02:58]} 2. c4 {[%clk 0:03:00]}  c6 {[%clk 0:02:59]} 3. Nf3 {[%clk 0:02:59]}  Nf6 {[%clk 0:02:59]} 4. Nc3 {[%clk 0:02:59]}  e6 {[%clk 0:02:58]} 5. e3 {[%clk 0:02:55]}  Nbd7 {[%clk 0:02:58]} 6. Qc2 {[%clk 0:02:54]}  Bd6 {[%clk 0:02:58]} 7. Be2 {[%clk 0:02:54]}  O-O {[%clk 0:02:53]} 8. O-O {[%clk 0:02:54]}  a6 {[%clk 0:02:35]} 9. Rd1 {[%clk 0:02:49]}  Qe7 {[%clk 0:02:31]} 10. b3 {[%clk 0:02:44]}  dxc4 {[%clk 0:01:35]} 11. bxc4 {[%clk 0:02:21]}  c5 {[%clk 0:01:35]} 12. Bb2 {[%clk 0:02:16]}  cxd4 {[%clk 0:01:28]} 13. exd4 {[%clk 0:02:15]}  b6 {[%clk 0:01:28]} 14. Ng5 {[%clk 0:01:48]}  Bb7 {[%clk 0:01:24]} 15. d5 {[%clk 0:01:46]}  exd5 {[%clk 0:01:20]} 16. Nxd5 {[%clk 0:01:08]}  Bxd5 {[%clk 0:01:20]} 17. cxd5 {[%clk 0:01:04]}  h6 {[%clk 0:01:14]} 18. Nf3 {[%clk 0:01:04]}  Ne5 {[%clk 0:01:03]} 19. Qf5 {[%clk 0:00:51]}  Rfe8 {[%clk 0:00:54]} 20. Nxe5 {[%clk 0:00:35]}  Bxe5 {[%clk 0:00:53]} 21. d6 {[%clk 0:00:34]}  Bxd6 {[%clk 0:00:31]} 22. Bf3 {[%clk 0:00:27]}  Rad8 {[%clk 0:00:30]} 23. Bc6 {[%clk 0:00:27]}  Bxh2+ {[%clk 0:00:17]} 24. Kh1 {[%clk 0:00:16]}  Rxd1+ {[%clk 0:00:17]} 25. Rxd1 {[%clk 0:00:16]}  Rd8 {[%clk 0:00:16]} 26. Rxd8+ {[%clk 0:00:11]}  Qxd8 {[%clk 0:00:16]} 27. Bxf6 {[%clk 0:00:11]}  gxf6 {[%clk 0:00:16]} 28. Be4 {[%clk 0:00:10]}  Be5 {[%clk 0:00:14]} 29. Qh7+ {[%clk 0:00:10]}  Kf8 {[%clk 0:00:15]} 30. Qxh6+ {[%clk 0:00:10]}  Ke7 {[%clk 0:00:15]} 31. g3 {[%clk 0:00:11]}  Qd1+ {[%clk 0:00:14]} 32. Kg2 {[%clk 0:00:11]}  Qe2 {[%clk 0:00:14]} 33. Qe3 {[%clk 0:00:05]}  Qxe3 {[%clk 0:00:13]} 34. fxe3 {[%clk 0:00:06]}  Kd6 {[%clk 0:00:12]} 35. Bb7 {[%clk 0:00:06]}  a5 {[%clk 0:00:12]} 36. a4 {[%clk 0:00:06]}  Kc5 {[%clk 0:00:08]} 37. Ba6 {[%clk 0:00:06]}  Kb4 {[%clk 0:00:08]} 38. Bb5 {[%clk 0:00:07]}  Bd6 {[%clk 0:00:08]} 39. Kf3 {[%clk 0:00:07]}  Be5 {[%clk 0:00:06]} 40. g4 {[%clk 0:00:07]}  Bb2 {[%clk 0:00:06]} 41. Ke4 {[%clk 0:00:08]}  Kc5 {[%clk 0:00:05]} 42. Be8 {[%clk 0:00:07]}  Kd6 {[%clk 0:00:04]} 43. Bxf7 {[%clk 0:00:07]}  Bc1 {[%clk 0:00:05]} 44. Bc4 {[%clk 0:00:07]}  Bd2 {[%clk 0:00:04]} 45. Bb5 {[%clk 0:00:07]}  Bc1 {[%clk 0:00:04]} 46. Kd3 {[%clk 0:00:07]}  Kc5 {[%clk 0:00:03]} 47. Ke4 {[%clk 0:00:08]}  Kd6 {[%clk 0:00:03]} 48. Kf5 {[%clk 0:00:08]}  Ke7 {[%clk 0:00:03]} 49. e4 {[%clk 0:00:09]}  Bb2 {[%clk 0:00:03]} 50. Bc4 {[%clk 0:00:07]}  Kd6 {[%clk 0:00:03]} 51. Bb5 {[%clk 0:00:06]}  Bc3 {[%clk 0:00:03]} 52. Be8 {[%clk 0:00:06]}  Be5 {[%clk 0:00:03]} 53. Bb5 {[%clk 0:00:06]}  Ke7 {[%clk 0:00:03]} 54. Kg6 {[%clk 0:00:06]}  Bd4 {[%clk 0:00:03]} 55. Bc4 {[%clk 0:00:07]}  Be5 {[%clk 0:00:03]} 56. Kf5 {[%clk 0:00:07]}  Kd6 {[%clk 0:00:02]} 57. Bd5 {[%clk 0:00:07]}  Bd4 {[%clk 0:00:02]} 58. Bb3 {[%clk 0:00:07]}  Bc3 {[%clk 0:00:03]} 59. Bc4 {[%clk 0:00:07]}  Bb2 {[%clk 0:00:03]} 60. Bb5 {[%clk 0:00:07]}  Bc3 {[%clk 0:00:02]} 61. g5 {[%clk 0:00:08]}  fxg5 {[%clk 0:00:01]} 62. Kxg5 {[%clk 0:00:09]}  Ke5 {[%clk 0:00:02]} 63. Bc6 {[%clk 0:00:09]}  Bd4 {[%clk 0:00:02]} 64. Kg6 {[%clk 0:00:10]}  Bc5 {[%clk 0:00:03]} 65. Kf7 {[%clk 0:00:10]}  Bd4 {[%clk 0:00:03]} 66. Ke8 {[%clk 0:00:10]}  Bc5 {[%clk 0:00:04]} 67. Kd7 {[%clk 0:00:11]}  Bd4 {[%clk 0:00:05]} 68. Kc8 {[%clk 0:00:11]}  Bc5 {[%clk 0:00:06]} 69. Kb7 {[%clk 0:00:12]}  Bd4 {[%clk 0:00:06]} 70. Ka6 {[%clk 0:00:13]}  Bc5 {[%clk 0:00:07]} 71. Kb5 {[%clk 0:00:13]}  Bd4 {[%clk 0:00:08]} 72. Bd5 {[%clk 0:00:14]}  Bc5 {[%clk 0:00:08]} 73. Kc4 {[%clk 0:00:14]}  Bd4 {[%clk 0:00:09]} 74. Bb7 {[%clk 0:00:15]}  Bc5 {[%clk 0:00:10]} 75. Bc6 {[%clk 0:00:15]}  Bd4 {[%clk 0:00:10]} 76. Bd5 {[%clk 0:00:15]}  Bc5 {[%clk 0:00:11]} 77. Bc6 {[%clk 0:00:16]}  Bd4 {[%clk 0:00:12]} 78. Bd5 {[%clk 0:00:16]}  Bc5 {[%clk 0:00:13]} 79. Bc6 {[%clk 0:00:17]} 1/2-1/2


[Site "https://www.chess.com"]

[Event "Titled Tuesday Blitz June 28 Early 2022"]
[White "Aldokhin, Ivan"]
[Black "Yaksin, Oleg"]
[WhiteFideId "24115720"]
[BlackFideId "24105880"]
[WhiteElo "2231"]
[BlackElo "2256"]
[Result "0-1"]
[Round "10"]
[TimeControl "180+1"]
[Date "2022.06.28"]
[WhiteClock "0:00:02"]
[BlackClock "0:00:05"]

1. e4 {[%clk 0:03:00]}  c5 {[%clk 0:02:58]} 2. Nf3 {[%clk 0:03:00]}  d6 {[%clk 0:02:57]} 3. g3 {[%clk 0:03:00]}  Nc6 {[%clk 0:02:57]} 4. Bg2 {[%clk 0:03:01]}  g6 {[%clk 0:02:57]} 5. O-O {[%clk 0:02:59]}  Bg7 {[%clk 0:02:58]} 6. c3 {[%clk 0:02:52]}  Bg4 {[%clk 0:02:50]} 7. h3 {[%clk 0:02:47]}  Bxf3 {[%clk 0:02:49]} 8. Qxf3 {[%clk 0:02:46]}  Nf6 {[%clk 0:02:47]} 9. Qe2 {[%clk 0:02:45]}  O-O {[%clk 0:02:47]} 10. f4 {[%clk 0:02:44]}  Nd7 {[%clk 0:02:47]} 11. a4 {[%clk 0:02:38]}  Rb8 {[%clk 0:02:45]} 12. Na3 {[%clk 0:02:37]}  a6 {[%clk 0:02:45]} 13. Kh2 {[%clk 0:02:35]}  Qc7 {[%clk 0:02:45]} 14. d3 {[%clk 0:02:09]}  b5 {[%clk 0:02:43]} 15. axb5 {[%clk 0:02:10]}  axb5 {[%clk 0:02:44]} 16. Bd2 {[%clk 0:02:10]}  b4 {[%clk 0:02:35]} 17. Nc4 {[%clk 0:02:09]}  Nb6 {[%clk 0:02:21]} 18. Ne3 {[%clk 0:01:58]}  bxc3 {[%clk 0:01:50]} 19. bxc3 {[%clk 0:01:55]}  e6 {[%clk 0:01:27]} 20. f5 {[%clk 0:01:43]}  Nd7 {[%clk 0:01:18]} 21. h4 {[%clk 0:01:38]}  Rbe8 {[%clk 0:01:15]} 22. fxe6 {[%clk 0:01:09]}  fxe6 {[%clk 0:01:13]} 23. Bh3 {[%clk 0:01:06]}  Nde5 {[%clk 0:01:02]} 24. h5 {[%clk 0:01:06]}  Qe7 {[%clk 0:00:59]} 25. Rxf8+ {[%clk 0:00:30]}  Rxf8 {[%clk 0:00:59]} 26. Rf1 {[%clk 0:00:31]}  Rxf1 {[%clk 0:00:58]} 27. Qxf1 {[%clk 0:00:31]}  gxh5 {[%clk 0:00:58]} 28. Ng2 {[%clk 0:00:25]}  Qf7 {[%clk 0:00:53]} 29. Nf4 {[%clk 0:00:14]}  Ng4+ {[%clk 0:00:53]} 30. Kg2 {[%clk 0:00:15]}  Nce5 {[%clk 0:00:50]} 31. d4 {[%clk 0:00:14]}  cxd4 {[%clk 0:00:50]} 32. cxd4 {[%clk 0:00:14]}  Nc6 {[%clk 0:00:35]} 33. d5 {[%clk 0:00:14]}  exd5 {[%clk 0:00:35]} 34. exd5 {[%clk 0:00:15]}  Nd4 {[%clk 0:00:31]} 35. Qc4 {[%clk 0:00:14]}  Qe8 {[%clk 0:00:26]} 36. Qd3 {[%clk 0:00:03]}  Qe5 {[%clk 0:00:18]} 37. Kg1 {[%clk 0:00:02]}  Nf5 {[%clk 0:00:07]} 38. Kg2 {[%clk 0:00:01]}  Nge3+ {[%clk 0:00:07]} 39. Bxe3 {[%clk 0:00:01]}  Nxe3+ {[%clk 0:00:07]} 40. Kf3 {[%clk 0:00:02]}  Ng4 {[%clk 0:00:05]} 41. Bxg4 {[%clk 0:00:02]}  hxg4+ {[%clk 0:00:06]} 42. Kxg4 {[%clk 0:00:03]}  Bh6 {[%clk 0:00:06]} 43. Qf5 {[%clk 0:00:02]}  Bxf4 {[%clk 0:00:05]} 0-1


[Site "https://www.chess.com"]

[Event "Titled Tuesday Blitz June 28 Early 2022"]
[White "Al-Tarboush, Ward"]
[Black "Buscar, Michael"]
[WhiteFideId "7601450"]
[BlackFideId "2603616"]
[WhiteElo "2249"]
[BlackElo "2010"]
[Result "0-1"]
[Round "10"]
[TimeControl "180+1"]
[Date "2022.06.28"]
[WhiteClock "0:00:10"]
[BlackClock "0:00:05"]

1. e4 {[%clk 0:03:00]}  c5 {[%clk 0:02:59]} 2. Nf3 {[%clk 0:03:01]}  Nc6 {[%clk 0:02:58]} 3. d4 {[%clk 0:03:01]}  cxd4 {[%clk 0:02:59]} 4. Nxd4 {[%clk 0:03:01]}  Nf6 {[%clk 0:03:00]} 5. Nc3 {[%clk 0:03:02]}  e5 {[%clk 0:03:00]} 6. Ndb5 {[%clk 0:03:03]}  h6 {[%clk 0:03:01]} 7. Bc4 {[%clk 0:02:59]}  d6 {[%clk 0:02:52]} 8. Nd5 {[%clk 0:02:54]}  Nxd5 {[%clk 0:02:50]} 9. Bxd5 {[%clk 0:02:55]}  Be6 {[%clk 0:02:47]} 10. O-O {[%clk 0:02:54]}  Be7 {[%clk 0:02:46]} 11. c4 {[%clk 0:02:53]}  O-O {[%clk 0:02:44]} 12. Be3 {[%clk 0:02:53]}  Qd7 {[%clk 0:02:41]} 13. Qd2 {[%clk 0:02:51]}  Kh7 {[%clk 0:02:19]} 14. Rad1 {[%clk 0:02:50]}  a6 {[%clk 0:02:04]} 15. Bxe6 {[%clk 0:02:49]}  Qxe6 {[%clk 0:02:05]} 16. Nc7 {[%clk 0:02:49]}  Qxc4 {[%clk 0:02:03]} 17. Nxa8 {[%clk 0:02:49]}  Rxa8 {[%clk 0:02:04]} 18. Qd5 {[%clk 0:02:47]}  Qxd5 {[%clk 0:01:59]} 19. exd5 {[%clk 0:02:48]}  Nb4 {[%clk 0:01:47]} 20. a3 {[%clk 0:02:47]}  Nc2 {[%clk 0:01:47]} 21. Bb6 {[%clk 0:02:45]}  Bg5 {[%clk 0:01:45]} 22. Rd3 {[%clk 0:02:29]}  Rc8 {[%clk 0:01:26]} 23. g3 {[%clk 0:02:29]}  e4 {[%clk 0:01:20]} 24. Rb3 {[%clk 0:02:27]}  f5 {[%clk 0:01:16]} 25. h4 {[%clk 0:02:25]}  Bf6 {[%clk 0:01:13]} 26. Rc1 {[%clk 0:02:25]}  Rc4 {[%clk 0:00:53]} 27. Rc3 {[%clk 0:02:03]}  Rxc3 {[%clk 0:00:47]} 28. bxc3 {[%clk 0:02:03]}  Nxa3 {[%clk 0:00:47]} 29. Bd4 {[%clk 0:01:36]}  Bxd4 {[%clk 0:00:26]} 30. cxd4 {[%clk 0:01:37]}  Nb5 {[%clk 0:00:26]} 31. Rc8 {[%clk 0:01:32]}  Nxd4 {[%clk 0:00:17]} 32. Rb8 {[%clk 0:01:30]}  b5 {[%clk 0:00:17]} 33. Rb6 {[%clk 0:01:29]}  a5 {[%clk 0:00:17]} 34. Rxd6 {[%clk 0:01:28]}  a4 {[%clk 0:00:18]} 35. Ra6 {[%clk 0:01:28]}  Kg8 {[%clk 0:00:16]} 36. Kf1 {[%clk 0:01:27]}  Kf7 {[%clk 0:00:16]} 37. Ke1 {[%clk 0:01:26]}  a3 {[%clk 0:00:16]} 38. Kd2 {[%clk 0:01:25]}  b4 {[%clk 0:00:17]} 39. Ra4 {[%clk 0:01:21]}  Nb3+ {[%clk 0:00:14]} 40. Kc2 {[%clk 0:01:17]}  Nc5 {[%clk 0:00:14]} 41. Ra7+ {[%clk 0:01:12]}  Kf6 {[%clk 0:00:14]} 42. Ra5 {[%clk 0:01:10]}  b3+ {[%clk 0:00:14]} 43. Kc3 {[%clk 0:01:09]}  b2 {[%clk 0:00:13]} 44. Kc2 {[%clk 0:01:06]}  Nd3 {[%clk 0:00:08]} 45. Rxa3 {[%clk 0:01:03]}  Nb4+ {[%clk 0:00:08]} 46. Kxb2 {[%clk 0:01:02]}  Nxd5 {[%clk 0:00:09]} 47. Ra5 {[%clk 0:00:59]}  Nb4 {[%clk 0:00:09]} 48. Kc3 {[%clk 0:00:55]}  Nd3 {[%clk 0:00:09]} 49. f4 {[%clk 0:00:52]}  Ne1 {[%clk 0:00:07]} 50. Kd4 {[%clk 0:00:48]}  Nf3+ {[%clk 0:00:07]} 51. Ke3 {[%clk 0:00:47]}  Ng1 {[%clk 0:00:05]} 52. h5 {[%clk 0:00:45]}  Nf3 {[%clk 0:00:05]} 53. Ra6+ {[%clk 0:00:45]}  Kf7 {[%clk 0:00:05]} 54. Rb6 {[%clk 0:00:42]}  Nh2 {[%clk 0:00:04]} 55. Kd4 {[%clk 0:00:38]}  Ng4 {[%clk 0:00:04]} 56. Kd5 {[%clk 0:00:30]}  Nf6+ {[%clk 0:00:05]} 57. Kd6 {[%clk 0:00:28]}  Nxh5 {[%clk 0:00:05]} 58. Rb3 {[%clk 0:00:24]}  Kf6 {[%clk 0:00:05]} 59. Ra3 {[%clk 0:00:22]}  g5 {[%clk 0:00:05]} 60. fxg5+ {[%clk 0:00:17]}  Kxg5 {[%clk 0:00:05]} 61. Ke5 {[%clk 0:00:16]}  Kg4 {[%clk 0:00:05]} 62. Ra6 {[%clk 0:00:13]}  Nxg3 {[%clk 0:00:05]} 63. Rg6+ {[%clk 0:00:13]}  Kf3 {[%clk 0:00:05]} 64. Kd4 {[%clk 0:00:10]}  f4 {[%clk 0:00:04]} 65. Rxh6 {[%clk 0:00:10]}  Nf5+ {[%clk 0:00:05]} 0-1


[Site "https://www.chess.com"]

[Event "Titled Tuesday Blitz June 28 Early 2022"]
[White "Andreikin, Dmitry"]
[Black "Narayanan.S.L"]
[WhiteFideId "4158814"]
[BlackFideId "5058422"]
[WhiteElo "2736"]
[BlackElo "2494"]
[Result "1-0"]
[Round "10"]
[TimeControl "180+1"]
[Date "2022.06.28"]
[WhiteClock "0:00:34"]
[BlackClock "0:00:25"]

1. d4 {[%clk 0:03:00]}  Nf6 {[%clk 0:03:00]} 2. c4 {[%clk 0:03:00]}  c5 {[%clk 0:03:00]} 3. Nf3 {[%clk 0:03:00]}  cxd4 {[%clk 0:02:53]} 4. Nxd4 {[%clk 0:03:01]}  e6 {[%clk 0:02:54]} 5. Nc3 {[%clk 0:02:59]}  d5 {[%clk 0:02:54]} 6. e3 {[%clk 0:02:48]}  Be7 {[%clk 0:02:53]} 7. Be2 {[%clk 0:02:45]}  O-O {[%clk 0:02:52]} 8. O-O {[%clk 0:02:45]}  dxc4 {[%clk 0:02:53]} 9. Bxc4 {[%clk 0:02:45]}  a6 {[%clk 0:02:53]} 10. Be2 {[%clk 0:02:40]}  Bd7 {[%clk 0:02:52]} 11. Bf3 {[%clk 0:02:40]}  Qb6 {[%clk 0:02:52]} 12. b3 {[%clk 0:02:24]}  Nc6 {[%clk 0:02:52]} 13. Na4 {[%clk 0:02:23]}  Qc7 {[%clk 0:02:52]} 14. Bb2 {[%clk 0:02:23]}  Rad8 {[%clk 0:02:03]} 15. Rc1 {[%clk 0:02:22]}  Qb8 {[%clk 0:02:03]} 16. Bxc6 {[%clk 0:02:14]}  bxc6 {[%clk 0:01:45]} 17. Qf3 {[%clk 0:02:13]}  Bd6 {[%clk 0:01:36]} 18. h3 {[%clk 0:02:09]}  Bh2+ {[%clk 0:01:34]} 19. Kh1 {[%clk 0:02:09]}  Be5 {[%clk 0:01:35]} 20. Nc5 {[%clk 0:01:58]}  Bxd4 {[%clk 0:01:34]} 21. Bxd4 {[%clk 0:01:58]}  e5 {[%clk 0:01:35]} 22. Bb2 {[%clk 0:01:50]}  Bc8 {[%clk 0:01:31]} 23. Rfd1 {[%clk 0:01:41]}  Rxd1+ {[%clk 0:01:24]} 24. Rxd1 {[%clk 0:01:39]}  Qb5 {[%clk 0:01:25]} 25. Rc1 {[%clk 0:01:39]}  Re8 {[%clk 0:01:23]} 26. Qg3 {[%clk 0:01:34]}  Nd7 {[%clk 0:01:23]} 27. Ne4 {[%clk 0:01:20]}  Qd5 {[%clk 0:01:21]} 28. f3 {[%clk 0:01:14]}  f5 {[%clk 0:01:18]} 29. Nc3 {[%clk 0:01:05]}  Qd2 {[%clk 0:01:17]} 30. Nd1 {[%clk 0:00:54]}  Nf6 {[%clk 0:01:11]} 31. Qf2 {[%clk 0:00:52]}  Qd5 {[%clk 0:01:02]} 32. Nc3 {[%clk 0:00:51]}  Qf7 {[%clk 0:01:02]} 33. Ne2 {[%clk 0:00:48]}  Nd5 {[%clk 0:00:59]} 34. Rxc6 {[%clk 0:00:44]}  Nb4 {[%clk 0:01:00]} 35. Rd6 {[%clk 0:00:44]}  Nxa2 {[%clk 0:00:52]} 36. Qg3 {[%clk 0:00:45]}  Qe7 {[%clk 0:00:50]} 37. Rd5 {[%clk 0:00:44]}  f4 {[%clk 0:00:36]} 38. exf4 {[%clk 0:00:41]}  exf4 {[%clk 0:00:37]} 39. Nxf4 {[%clk 0:00:41]}  Qe1+ {[%clk 0:00:36]} 40. Qxe1 {[%clk 0:00:38]}  Rxe1+ {[%clk 0:00:37]} 41. Kh2 {[%clk 0:00:39]}  Kf7 {[%clk 0:00:36]} 42. Rc5 {[%clk 0:00:35]}  Bf5 {[%clk 0:00:25]} 43. Rxf5+ {[%clk 0:00:34]} 1-0


[Site "https://www.chess.com"]